bitfinex/quotes_ETHUSD_20240718
["timestamp","ask_amount","ask_price","bid_price","bid_amount"]
[1721308529006,1.936,3488.2,3487.1,0.03626942]
[1721308529395,1.936,3488.2,3487.1,3.45396942]
[1721308530527,4.80281,3488.2,3487.1,3.45396942]
[1721308530931,1.936,3488.6,3487.2,2.37294718]
[1721308531134,1.936,3489.0,3487.9,2.3156]
[1721308531431,4.80216,3489.0,3488.0,0.03588407]
[1721308531619,1.936,3489.0,3488.0,0.03588407]
[1721308531821,4.80215,3489.0,3488.0,0.03588407]
[1721308532022,3.346461,3488.9,3488.0,0.03588407]
[1721308532407,2.86647,3488.6,3488.0,0.03588407]
[1721308532611,2.86647,3488.6,3487.5,2.3647]
[1721308532928,2.86642,3488.7,3488.1,0.0358143]
[1721308533130,0.6212941,3488.6,3487.6,3.55]
[1721308533336,2.86642,3488.7,3488.2,0.03578216]
[1721308533510,2.86642,3488.7,3487.6,3.55]
[1721308533703,2.86642,3488.7,3488.3,0.03575002]
[1721308533908,2.86642,3488.7,3487.6,3.55]
[1721308534108,3.346471,3488.9,3487.6,3.55]
[1721308534109,2.86626,3488.9,3487.6,3.55]
[1721308534312,2.86626,3488.9,3487.7,0.0359429]
[1721308534508,2.86632,3488.8,3487.7,0.0359429]
[1721308535285,2.86626,3488.9,3487.7,0.0359429]
[1721308535286,2.86642,3488.7,3487.7,0.0359429]
[1721308535955,5.73289,3488.7,3487.7,0.0359429]
[1721308536435,2.86665,3488.4,3487.7,0.0359429]
[1721308536791,3.439719,3488.7,3487.7,0.0359429]
[1721308537030,2.86649,3488.6,3487.7,0.0359429]
[1721308537741,2.86657,3488.5,3487.7,0.0359429]
[1721308537924,2.8667,3488.4,3487.7,0.0359429]
[1721308538396,2.86675,3488.3,3487.7,0.0359429]
[1721308539132,2.86675,3488.3,3487.5,2.3647]
[1721308539337,5.73355,3488.3,3487.8,0.03552317]
[1721308539543,5.73355,3488.3,3487.5,2.3647]
[1721308539544,3.440105,3488.3,3487.5,2.3647]
[1721308539836,2.86675,3488.3,3487.6,0.03558747]
[1721308540999,2.86643,3488.7,3487.6,0.03558747]
[1721308541204,2.86643,3488.7,3487.6,0.58558747]
[1721308541406,2.86656,3488.5,3487.6,0.58558747]
[1721308541711,2.86656,3488.5,3487.6,3.58558747]
[1721308543448,2.86681,3488.2,3487.6,0.03558747]
[1721308543604,2.86677,3488.3,3487.6,0.03558747]
[1721308543945,2.86684,3488.2,3487.6,0.03558747]
[1721308545607,2.8669,3488.1,3487.6,0.03558747]
[1721308545808,0.54932634,3488.1,3487.6,0.03558747]
[1721308546054,2.86721,3487.7,3487.6,0.03558747]
[1721308546258,2.86734,3487.6,3487.0,2.3595]
[1721308546405,2.86734,3487.6,3486.3,2.3115]
[1721308546604,2.86747,3487.4,3486.3,2.3115]
[1721308546839,2.86747,3487.4,3486.3,2.686345]
[1721308547053,2.86734,3487.6,3486.3,2.3115]
[1721308547410,2.86734,3487.6,3486.4,0.03487178]
[1721308548847,2.86743,3487.5,3486.4,0.03487178]
[1721308549060,2.86743,3487.5,3486.4,3.58487178]
[1721308549215,2.86734,3487.6,3486.4,3.58487178]
[1721308549216,3.440947,3487.4,3486.4,0.58487178]
[1721308549404,2.86747,3487.4,3486.4,3.58487178]
[1721308549611,2.86734,3487.6,3486.4,3.58487178]
[1721308550382,2.86738,3487.5,3486.4,3.58487178]
[1721308551547,2.86746,3487.4,3486.4,3.58487178]
[1721308551869,0.57348,3487.3,3486.4,3.58487178]
[1721308552077,0.57348,3487.3,3486.4,3.03487178]
[1721308552273,2.86772,3487.1,3486.4,0.03487178]
[1721308552479,2.86782,3487.0,3486.4,0.03487178]
[1721308552653,2.86782,3487.0,3486.3,2.3115]
[1721308553178,2.86782,3487.0,3486.4,0.03503732]
[1721308553376,2.86768,3487.2,3486.3,2.3115]
[1721308553537,2.579,3487.6,3486.3,2.3115]
[1721308553739,2.86716,3487.8,3486.4,0.03507871]
[1721308553979,2.86695,3488.1,3486.7,5.24468]
[1721308554162,2.86695,3488.1,3486.8,0.55]
[1721308554366,2.86674,3488.3,3486.9,5.24455]
[1721308554679,2.86683,3488.2,3487.0,3.55]
[1721308554841,2.8669,3488.1,3487.0,3.55]
[1721308555183,4.587534,3488.3,3487.1,0.0348046]
[1721308555383,2.86678,3488.3,3487.1,0.0348046]
[1721308555589,2.86685,3488.2,3487.1,0.0348046]
[1721308555893,2.86679,3488.3,3487.1,0.0348046]
[1721308556071,2.86679,3488.3,3487.2,2.86761]
[1721308556253,2.86665,3488.4,3487.3,0.55]
[1721308556457,2.86672,3488.3,3487.3,0.03468384]
[1721308557059,2.86672,3488.3,3487.0,3.0]
[1721308557678,2.86672,3488.3,3487.1,0.03472559]
[1721308557902,2.8668,3488.2,3487.1,0.03472559]
[1721308558185,2.86672,3488.3,3487.1,0.03472559]
[1721308558186,2.86689,3488.1,3487.1,0.03472559]
[1721308558375,3.5399241,3488.1,3487.1,0.03472559]
[1721308558576,0.6730341,3488.1,3487.1,0.03472559]
[1721308558887,2.86672,3488.3,3487.1,0.03472559]
[1721308559049,3.863371,3488.4,3487.2,2.86759]
[1721308559252,3.863371,3488.4,3487.2,2.90232102]
[1721308559253,2.86672,3488.3,3487.2,2.90232102]
[1721308559452,0.996731,3488.4,3487.2,2.90232102]
[1721308559697,3.863441,3488.4,3487.2,2.90232102]
[1721308559879,2.86673,3488.3,3487.2,2.90232102]
[1721308560490,0.996731,3488.4,3487.2,5.76989102]
[1721308560697,3.863371,3488.4,3487.2,2.90230102]
[1721308561481,1.935,3488.5,3487.4,2.3501]
[1721308561697,2.86639,3488.7,3487.5,3.41734]
[1721308561876,2.86632,3488.8,3487.6,2.86729]
[1721308562191,2.3068,3489.3,3488.0,2.86695]
[1721308562192,4.80096,3489.3,3488.0,2.86695]
[1721308562387,2.866,3489.2,3488.0,2.86695]
[1721308562894,2.3068,3489.8,3488.3,2.4458]
[1721308562895,2.8656,3489.7,3488.3,2.4458]
[1721308563048,2.86526,3490.1,3488.6,2.86647]
[1721308563253,2.86548,3489.9,3488.7,0.55]
[1721308563448,2.221526,3490.0,3488.7,0.58424881]
[1721308563449,2.86549,3489.8,3488.7,0.58424881]
[1721308563699,2.221526,3490.0,3488.7,0.58424881]
[1721308563865,2.221526,3490.0,3488.9,2.86622]
[1721308564403,5.221526,3490.0,3489.0,0.03415242]
[1721308564556,0.8086826,3489.9,3489.0,0.03415242]
[1721308564758,2.86549,3489.8,3489.0,0.03415242]
[1721308564954,2.86562,3489.7,3489.0,0.03415242]
[1721308565178,2.86562,3489.7,3489.1,0.03412029]
[1721308565404,2.86562,3489.7,3488.8,2.3147]
[1721308565586,3.45520286,3489.7,3488.8,2.3147]
[1721308565961,3.45520286,3489.7,3488.9,0.03418455]
[1721308566289,0.58958286,3489.7,3488.9,0.03418455]
[1721308566493,3.6740926,3489.9,3488.9,0.03418455]
[1721308566695,2.221526,3490.0,3488.8,2.3147]
[1721308566867,1.935,3490.0,3489.0,2.86613]
[1721308567071,2.86525,3490.1,3489.0,2.86613]
[1721308567264,2.86525,3490.1,3489.1,0.03412029]
[1721308567467,2.86551,3489.8,3488.8,2.3147]
[1721308567672,2.86551,3489.8,3489.2,0.03408816]
[1721308567864,2.86551,3489.8,3488.8,2.3147]
[1721308567865,0.766584,3489.7,3488.8,2.3147]
[1721308568096,0.766584,3489.7,3489.3,0.03405604]
[1721308568257,3.632174,3489.7,3488.8,2.3147]
[1721308568459,3.632174,3489.7,3489.4,0.03402392]
[1721308568691,2.86567,3489.6,3488.8,2.3147]
[1721308568893,3.5154544,3489.6,3488.8,2.3147]
[1721308569138,2.5847844,3489.6,3488.9,0.03418455]
[1721308569270,2.86615,3489.0,3488.9,0.03418455]
[1721308569594,2.86665,3488.4,3487.3,2.3621]
[1721308570285,2.86672,3488.3,3487.3,2.3621]
[1721308570807,2.86681,3488.2,3487.3,2.3621]
[1721308571270,5.73319,3488.5,3487.3,2.3621]
[1721308571593,2.86664,3488.4,3487.3,2.3621]
[1721308571901,2.86673,3488.3,3487.3,2.3621]
[1721308572496,2.8669,3488.1,3487.3,2.3621]
[1721308572793,2.86657,3488.5,3487.3,2.3621]
[1721308573111,2.86689,3488.1,3487.3,2.3621]
[1721308575578,2.86689,3488.1,3486.7,2.3626]
[1721308575771,2.86704,3488.0,3486.8,0.55]
[1721308576112,2.86689,3488.1,3486.8,0.55]
[1721308576408,2.86657,3488.5,3486.9,2.86786]
[1721308576563,2.86665,3488.4,3487.2,2.86762]
[1721308576799,2.86665,3488.4,3487.3,0.55]
[1721308577229,2.86654,3488.6,3487.4,2.3895]
[1721308577443,2.86666,3488.4,3487.4,0.03211337]
[1721308577739,0.57332,3488.3,3487.4,0.03211337]
[1721308578241,0.57332,3488.3,3487.3,2.86753]
[1721308578439,2.86665,3488.4,3487.5,0.03208121]
[1721308578620,2.86665,3488.4,3487.2,3.41757]
[1721308578821,2.579,3488.8,3487.7,2.8672]
[1721308578998,10.14601,3489.2,3487.7,2.8672]
[1721308578999,2.86623,3488.9,3487.7,2.8672]
[1721308579198,10.14601,3489.2,3488.0,2.3152]
[1721308579199,7.28,3489.2,3488.0,2.3152]
[1721308579437,2.60415144,3489.2,3488.1,0.03188831]
[1721308579598,2.86585,3489.4,3488.1,0.58188831]
[1721308579801,2.86574,3489.5,3488.2,2.86674]
[1721308579999,2.86574,3489.5,3488.3,3.44866816]
[1721308581138,2.86583,3489.4,3488.3,3.44866816]
[1721308582651,2.86583,3489.4,3488.3,0.58197816]
[1721308582806,3.439069,3489.3,3488.3,0.03197816]
[1721308583361,3.439069,3489.3,3488.1,0.55]
[1721308583519,2.86592,3489.3,3488.4,0.03178241]
[1721308583715,2.86592,3489.3,3488.2,0.0318467]
[1721308583908,2.86601,3489.2,3488.1,0.55]
[1721308584109,2.86601,3489.2,3488.3,0.03181455]
[1721308584337,2.86615,3489.0,3488.2,0.0318467]
[1721308584533,0.573216,3488.9,3488.4,0.03178241]
[1721308584837,0.573216,3488.9,3488.0,2.3152]
[1721308585038,2.86616,3489.0,3488.5,0.03175028]
[1721308585263,2.86616,3489.0,3488.0,2.3152]
[1721308585534,2.86569,3489.6,3488.6,0.03171814]
[1721308585739,2.86569,3489.6,3488.4,3.41662]
[1721308586167,5.86558,3489.7,3488.5,2.86655]
[1721308586476,0.873107,3489.6,3488.6,0.03169182]
[1721308586646,2.86546,3489.9,3488.7,2.2718]
[1721308586978,2.86551,3489.8,3488.7,2.30345968]
[1721308587280,2.86536,3490.0,3488.7,5.16981968]
[1721308587774,7.28,3490.7,3489.5,2.86572]
[1721308587775,2.579,3490.6,3489.5,2.86572]
[1721308587963,2.579,3490.6,3489.6,2.3851]
[1721308587964,2.86484,3490.6,3489.6,2.3851]
[1721308588137,0.572963,3490.5,3489.6,2.4163653]
[1721308588337,2.8651,3490.3,3489.6,2.4163653]
[1721308589054,3.437943,3490.5,3489.6,2.4163653]
[1721308589277,2.86465,3490.9,3489.6,2.4163653]
[1721308589477,2.86476,3490.7,3489.6,2.4163653]
[1721308589807,2.86484,3490.6,3489.6,2.4163653]
[1721308590004,2.86492,3490.5,3489.6,2.4163653]
[1721308590211,3.437988,3490.4,3489.6,2.4163653]
[1721308590570,2.86516,3490.2,3489.6,0.0312653]
[1721308590764,2.86516,3490.2,3489.1,2.4883]
[1721308590999,2.86516,3490.2,3489.2,0.03106676]
[1721308592074,2.86535,3490.0,3489.2,0.03106676]
[1721308592411,0.573051,3489.9,3489.2,0.03106676]
[1721308592615,1.933,3490.1,3489.2,0.03106676]
[1721308593114,1.933,3490.1,3489.3,2.86588]
[1721308593414,1.933,3490.1,3489.4,0.03100252]
[1721308593714,1.933,3490.1,3489.1,2.4883]
[1721308593920,1.933,3490.1,3489.5,0.0309704]
[1721308594084,3.437988,3490.4,3489.2,3.41593]
[1721308594281,1.933,3490.5,3489.2,3.41593]
[1721308594282,1.933,3490.5,3489.6,0.03093828]
[1721308594482,1.933,3490.5,3489.4,2.86575]
[1721308594777,1.933,3490.5,3489.5,3.58093846]
[1721308595120,1.933,3490.5,3489.5,6.44665846]
[1721308595322,7.28,3490.7,3489.6,2.86563]
[1721308595611,2.86471,3490.8,3489.7,2.84187422]
[1721308595990,1.933,3491.3,3489.7,2.84187422]
[1721308596191,7.28,3491.5,3490.2,2.86511]
[1721308596192,10.14411,3491.5,3490.2,2.86511]
[1721308596393,2.86418,3491.4,3490.3,0.55]
[1721308596591,2.86418,3491.4,3490.3,3.5797801]
[1721308596988,2.86418,3491.4,3490.3,3.63707465]
[1721308597214,2.8641,3491.5,3490.3,6.4448601]
[1721308597878,2.8641,3491.5,3490.3,3.5797801]
[1721308598081,2.8641,3491.5,3490.3,0.5797801]
[1721308598521,2.86418,3491.4,3490.3,3.4448501]
[1721308599122,2.86418,3491.4,3490.3,0.5797801]
[1721308599359,2.86418,3491.4,3490.3,0.0297801]
[1721308600247,0.2,3491.0,3490.3,0.0297801]
[1721308601244,0.2,3491.0,3490.1,2.86517]
[1721308601442,0.2,3491.0,3490.4,0.02963721]
[1721308601616,0.2,3491.0,3490.6,2.3109]
[1721308601832,0.2,3491.0,3490.7,0.02954091]
[1721308602823,0.2,3491.0,3490.4,0.55]
[1721308603031,0.2,3491.0,3490.8,0.0295351]
[1721308603360,0.2,3491.0,3490.4,0.55]
[1721308603562,0.2,3491.0,3490.9,0.0294861]
[1721308604152,0.2,3491.0,3490.4,0.55]
[1721308604366,0.2,3491.0,3490.9,0.0294861]
[1721308604574,0.2,3491.0,3490.4,0.55]
[1721308604773,0.2,3491.0,3490.9,0.0294861]
[1721308604930,0.2,3491.0,3490.4,0.55]
[1721308605136,0.2,3491.0,3490.9,0.02949174]
[1721308605359,0.2,3491.0,3490.4,0.55]
[1721308605549,0.2,3491.0,3490.9,0.02949174]
[1721308605750,0.2,3491.0,3490.4,6.415]
[1721308605958,0.2,3491.0,3490.9,0.02949174]
[1721308606160,0.2,3491.0,3490.4,6.415]
[1721308606363,0.2,3491.0,3490.9,0.02949174]
[1721308606533,0.2,3491.0,3490.7,2.31]
[1721308606734,0.2,3491.0,3490.9,0.02949174]
[1721308606934,0.2,3491.0,3490.8,0.57952383]
[1721308607156,0.2,3491.0,3490.9,0.02935277]
[1721308607634,2.575,3492.2,3491.0,2.8645]
[1721308607837,2.575,3492.2,3490.9,2.89394277]
[1721308607838,2.88046,3492.3,3491.2,2.4754]
[1721308608173,2.88046,3492.3,3491.3,0.55]
[1721308608473,0.017,3492.3,3491.4,0.05727736]
[1721308608837,0.017,3492.3,3491.5,0.02916024]
[1721308609177,2.88044,3492.3,3491.5,0.57916024]
[1721308609470,2.88044,3492.3,3491.5,0.02916024]
[1721308609683,2.86353,3492.2,3491.5,0.02916024]
[1721308609861,2.86369,3492.0,3491.3,3.55]
[1721308610182,2.86353,3492.2,3491.6,0.02912816]
[1721308610470,2.86353,3492.2,3491.4,0.02919233]
[1721308610635,2.86353,3492.2,3491.7,0.02892715]
[1721308610832,2.86353,3492.2,3491.3,3.55]
[1721308611070,2.86353,3492.2,3491.8,0.02889507]
[1721308611273,2.86374,3492.0,3491.3,3.0]
[1721308611482,2.86374,3492.0,3491.9,0.028878]
[1721308611773,2.86374,3492.0,3491.2,2.4754]
[1721308611939,5.7275,3492.0,3491.2,2.4754]
[1721308612133,2.86374,3492.0,3491.3,0.02907049]
[1721308612374,2.86374,3492.0,3491.3,3.02907049]
[1721308612577,5.7275,3492.0,3491.3,3.02907049]
[1721308612877,2.86374,3492.0,3491.3,3.02907049]
[1721308613570,2.86382,3491.9,3491.3,3.02907049]
[1721308614138,2.86408,3491.6,3491.3,0.02907049]
[1721308614539,2.86408,3491.6,3491.2,2.4754]
[1721308614739,2.86408,3491.6,3491.4,0.02812798]
[1721308615048,2.86408,3491.6,3491.2,2.4754]
[1721308615276,2.8639,3491.8,3491.2,2.4754]
[1721308615437,2.8639,3491.8,3491.3,0.02816006]
[1721308615779,2.8639,3491.8,3491.2,2.4754]
[1721308615944,2.8639,3491.8,3491.4,0.02812798]
[1721308616150,2.8639,3491.8,3491.3,0.02816006]
[1721308616374,2.8639,3491.8,3491.5,0.02809589]
[1721308616579,2.86375,3492.0,3491.4,0.02812798]
[1721308616784,2.86375,3492.0,3491.6,0.02806381]
[1721308616940,2.86375,3492.0,3491.2,2.4754]
[1721308617283,2.86375,3492.0,3491.3,0.02811501]
[1721308617486,0.017,3492.3,3491.3,0.02811501]
[1721308617487,2.88045,3492.3,3491.3,0.02811501]
[1721308617777,2.88045,3492.3,3491.3,0.63539633]
[1721308617937,2.88045,3492.3,3491.3,0.57811501]
[1721308618339,2.86352,3492.2,3491.3,0.57811501]
[1721308618768,2.86361,3492.1,3491.3,0.57811501]
[1721308619473,2.88045,3492.3,3491.3,0.57811501]
[1721308619869,0.017,3492.3,3491.3,0.57811501]
[1721308620278,2.88045,3492.3,3491.3,0.57811501]
[1721308620637,2.86361,3492.1,3491.3,0.57811501]
[1721308620942,2.86359,3492.2,3491.3,0.02811501]
[1721308621275,2.86354,3492.2,3491.3,0.02811501]
[1721308621442,2.86354,3492.2,3491.3,0.57811501]
[1721308621641,2.88048,3492.3,3491.3,0.57811501]
[1721308622869,2.86365,3492.1,3491.3,0.02811501]
[1721308623071,5.72733,3492.1,3491.3,0.02811501]
[1721308623248,2.86369,3492.0,3491.3,0.02811501]
[1721308623446,2.8638,3491.9,3491.3,0.02811501]
[1721308623977,2.8639,3491.8,3491.3,0.02811501]
[1721308624157,2.86393,3491.7,3491.3,0.02811501]
[1721308624364,2.8638,3491.9,3490.9,2.2893]
[1721308624566,2.86364,3492.1,3491.4,0.02802475]
[1721308624774,1.93,3492.2,3491.0,0.05728318]
[1721308625064,5.74397,3492.3,3491.0,0.05728318]
[1721308625065,2.88046,3492.3,3491.6,2.3986]
[1721308625555,2.88046,3492.3,3491.7,0.0279529]
[1721308625761,0.017,3492.3,3491.7,0.0279529]
[1721308628047,2.86357,3492.2,3491.7,0.0279529]
[1721308628245,2.86383,3491.9,3491.0,3.0]
[1721308628486,2.86383,3491.9,3491.1,0.02807599]
[1721308628684,2.8639,3491.8,3491.1,0.02807599]
[1721308628859,2.8639,3491.8,3490.7,2.3809]
[1721308629056,2.8639,3491.8,3491.2,0.0280439]
[1721308629419,2.86415,3491.5,3490.7,2.3809]
[1721308629546,2.86419,3491.4,3491.3,0.02801182]
[1721308629746,2.86419,3491.4,3490.7,2.3809]
[1721308630173,2.86419,3491.4,3490.8,0.02817227]
[1721308630367,2.86408,3491.6,3490.8,0.02817227]
[1721308630569,2.86411,3491.5,3490.8,0.02817227]
[1721308630846,2.86418,3491.4,3490.8,0.02817227]
[1721308631182,1.93,3492.1,3490.8,0.02817227]
[1721308631395,2.86356,3492.2,3490.9,5.27227]
[1721308631545,2.86356,3492.2,3491.0,0.55]
[1721308631750,5.72716,3492.2,3491.0,0.57810808]
[1721308631943,2.86356,3492.2,3491.0,6.44260808]
[1721308632706,2.86362,3492.1,3491.0,6.44260808]
[1721308633434,0.017,3492.3,3491.0,6.44260808]
[1721308633719,2.86366,3492.1,3491.0,3.57810808]
[1721308634220,2.86371,3492.0,3491.0,3.57810808]
[1721308634930,5.72716,3492.2,3491.0,3.57810808]
[1721308635085,2.86362,3492.1,3491.0,3.57810808]
[1721308635283,2.86369,3492.0,3491.0,3.02810808]
[1721308635486,2.86385,3491.8,3491.0,3.02810808]
[1721308635682,2.86385,3491.8,3491.0,0.02810808]
[1721308635924,2.86394,3491.7,3491.0,0.02810808]
[1721308636134,2.86403,3491.6,3491.0,0.02810808]
[1721308636340,2.86413,3491.5,3491.0,0.02810808]
[1721308636689,2.86413,3491.5,3490.5,2.2805]
[1721308636889,2.86413,3491.5,3491.1,0.02808162]
[1721308637119,2.86413,3491.5,3490.5,2.2805]
[1721308637120,2.86426,3491.3,3490.5,2.2805]
[1721308637437,2.86426,3491.3,3491.2,0.02804953]
[1721308637588,2.86426,3491.3,3490.1,3.0]
[1721308637589,2.86443,3491.1,3490.1,2.3811]
[1721308637915,2.86443,3491.1,3490.2,0.0284437]
[1721308638103,2.8646,3490.9,3490.2,0.0284437]
[1721308638301,2.86469,3490.8,3490.2,0.0284437]
[1721308638508,1.93,3491.3,3490.2,0.0284437]
[1721308638509,2.86485,3490.6,3490.2,0.0284437]
[1721308639115,2.86485,3490.6,3490.1,2.3811]
[1721308639288,2.86485,3490.6,3489.6,2.3379]
[1721308639507,2.86508,3490.3,3490.2,0.02856567]
[1721308639711,2.86524,3490.1,3489.6,2.3379]
[1721308640003,2.86524,3490.1,3488.7,42.32]
[1721308640004,2.86541,3489.9,3489.0,2.3379]
[1721308640323,2.86555,3489.8,3489.0,2.3379]
[1721308640513,2.86541,3489.9,3489.1,0.02891894]
[1721308640514,2.86558,3489.7,3489.1,0.02891894]
[1721308641054,2.86567,3489.6,3489.1,0.02891894]
[1721308641258,2.86558,3489.7,3489.1,0.02891894]
[1721308641419,2.86534,3490.0,3489.0,2.3379]
[1721308641757,2.8651,3490.3,3489.1,0.02891894]
[1721308641956,7.28,3490.5,3489.2,2.92322113]
[1721308642105,7.28,3490.5,3489.4,2.86578]
[1721308642644,7.28,3490.5,3489.5,3.57879045]
[1721308643007,7.28,3490.5,3489.5,3.02879045]
[1721308643008,10.14493,3490.5,3489.5,3.02879045]
[1721308643387,7.28,3490.5,3489.5,0.02879045]
[1721308643510,7.28,3490.5,3489.5,3.57879045]
[1721308643913,2.86475,3490.7,3489.5,3.57879045]
[1721308644350,2.86475,3490.7,3489.5,6.44451045]
[1721308645350,2.86484,3490.6,3489.5,6.44451045]
[1721308645641,2.86473,3490.8,3489.5,6.44451045]
[1721308645816,4.79456,3491.0,3489.6,2.92290615]
[1721308646027,1.93,3491.4,3490.1,2.3399]
[1721308646363,2.86415,3491.5,3490.2,3.5011091]
[1721308646652,1.93,3491.8,3490.3,5.92230101]
[1721308646833,4.79385,3491.8,3490.5,2.86485]
[1721308647011,4.79385,3491.8,3490.6,3.0]
[1721308647332,2.86394,3491.7,3490.6,3.02858182]
[1721308647506,4.79385,3491.8,3490.6,3.08587142]
[1721308647708,4.79385,3491.8,3490.6,3.02858182]
[1721308648044,1.93,3491.8,3490.6,3.02858182]
[1721308648281,1.93,3491.8,3491.0,2.3399]
[1721308648424,1.93,3492.2,3491.0,5.20438]
[1721308648611,2.86337,3492.4,3491.1,2.86435]
[1721308648804,2.86337,3492.4,3491.1,2.89263241]
[1721308649012,2.86337,3492.4,3491.2,5.86432]
[1721308649361,4.7932,3492.6,3491.3,0.02821824]
[1721308649645,4.79321,3492.6,3491.4,2.86412]
[1721308649950,4.79321,3492.6,3491.5,2.8921177]
[1721308650252,4.79321,3492.6,3491.5,0.0280377]
[1721308650458,1.93,3492.6,3491.5,0.0280377]
[1721308650606,10.14306,3492.8,3491.7,2.86393]
[1721308650607,7.28,3492.8,3491.7,2.86393]
[1721308651049,7.28,3492.8,3491.8,0.02794146]
[1721308651261,7.28,3492.8,3491.8,0.08521225]
[1721308651560,7.28,3492.8,3491.9,5.23011939]
[1721308651773,0.1507207,3493.2,3492.1,2.8636]
[1721308652122,0.1507207,3493.2,3492.2,6.27704]
[1721308652479,0.1507207,3493.2,3492.2,6.30474621]
[1721308652637,0.1507207,3493.2,3492.2,9.30474621]
[1721308655329,0.1507207,3493.2,3492.2,6.44122621]
[1721308657296,0.1507207,3493.2,3492.2,11.77834621]
[1721308658138,0.1507207,3493.2,3492.2,8.91482621]
[1721308658356,0.1507207,3493.2,3492.2,11.77834621]
[1721308659382,0.1507207,3493.2,3492.9,2.86294]
[1721308659712,0.1507207,3493.2,3493.0,2.46006589]
[1721308659870,0.1507207,3493.2,3493.0,5.32287589]
[1721308660267,0.1507207,3493.2,3493.1,2.86278]
[1721308660507,0.1507207,3493.2,3493.1,9.27556]
[1721308660712,0.1507207,3493.2,3493.1,9.30279384]
[1721308661271,0.1507207,3493.2,3493.1,0.02723384]
[1721308661511,0.1507207,3493.2,3493.1,2.86278]
[1721308661685,0.1507207,3493.2,3493.1,3.44144871]
[1721308662907,0.1507207,3493.2,3493.1,0.57866871]
[1721308663105,0.1507207,3493.2,3493.1,0.02866871]
[1721308663472,0.1507207,3493.2,3492.9,3.0]
[1721308663673,0.1507207,3493.2,3492.5,2.3134]
[1721308663674,6.3354682,3493.2,3493.1,0.0286185]
[1721308663893,6.3354682,3493.2,3492.5,5.3134]
[1721308664192,6.3354682,3493.2,3492.5,2.3134]
[1721308664398,6.3354682,3493.2,3492.6,0.02879024]
[1721308665351,6.3354682,3493.2,3492.1,3.0]
[1721308665553,6.3354682,3493.2,3492.7,0.02875589]
[1721308665707,6.3354682,3493.2,3492.4,2.86335]
[1721308665912,6.3354682,3493.2,3492.8,0.02872154]
[1721308666108,6.3354682,3493.2,3492.5,5.86322]
[1721308666355,6.3354682,3493.2,3492.9,0.02868719]
[1721308666644,6.3354682,3493.2,3492.5,5.86322]
[1721308666645,6.3354682,3493.2,3492.6,0.55]
[1721308666823,6.3354682,3493.2,3493.0,0.02865285]
[1721308667025,6.3354682,3493.2,3492.6,0.55]
[1721308667231,6.3354682,3493.2,3493.1,0.0286185]
[1721308667420,6.3354682,3493.2,3492.5,5.86322]
[1721308667421,6.3354682,3493.2,3492.5,3.0]
[1721308667629,6.3354682,3493.2,3493.1,0.0286185]
[1721308667833,6.3354682,3493.2,3492.0,8.36258]
[1721308667834,6.3354682,3493.2,3492.1,3.0]
[1721308668142,6.3354682,3493.2,3492.2,0.57892766]
[1721308668343,6.3354682,3493.2,3492.2,0.02892766]
[1721308669351,6.3354682,3493.2,3492.5,2.86324]
[1721308669559,6.3354682,3493.2,3492.7,2.86305]
[1721308669855,6.3354682,3493.2,3492.7,2.92030333]
[1721308670012,6.3354682,3493.2,3492.8,3.02872154]
[1721308670522,6.3354682,3493.2,3492.8,0.02872154]
[1721308670722,2.86282,3493.1,3492.2,3.0]
[1721308671036,2.86282,3493.1,3492.9,0.02868719]
[1721308671358,2.86309,3492.8,3492.1,3.0]
[1721308671512,2.86297,3492.9,3492.0,3.0]
[1721308671713,2.86319,3492.7,3491.6,2.391]
[1721308671925,2.86298,3492.9,3491.6,5.255]
[1721308672140,2.86328,3492.5,3491.6,2.391]
[1721308672350,2.86337,3492.4,3491.6,2.391]
[1721308672616,2.86333,3492.5,3491.6,2.391]
[1721308672825,2.86346,3492.3,3491.6,2.391]
[1721308673024,2.86346,3492.3,3491.6,2.171]
[1721308673618,2.86294,3493.0,3490.8,7.32]
[1721308673842,2.86364,3492.1,3491.0,2.86447]
[1721308674368,2.86329,3492.5,3491.2,2.86432]
[1721308674655,7.27,3492.8,3491.7,2.86388]
[1721308674863,2.86289,3493.0,3491.9,2.8637]
[1721308675071,2.86289,3493.0,3492.0,0.55]
[1721308675233,2.8532,3492.6,3491.9,0.55]
[1721308675735,2.86307,3492.8,3491.6,3.41398]
[1721308675951,6.3354682,3493.2,3491.7,3.0]
[1721308675952,9.1882082,3493.2,3491.7,3.0]
[1721308676273,2.86325,3492.6,3491.6,0.55]
[1721308676671,2.85346,3492.3,3491.4,3.0]
[1721308676965,1.93,3493.0,3491.3,2.4577]
[1721308676966,2.86311,3492.8,3491.3,2.4577]
[1721308677159,2.86328,3492.5,3491.3,5.32189]
[1721308677378,2.86324,3492.6,3491.3,5.32189]
[1721308677526,2.86324,3492.6,3491.4,3.0]
[1721308677724,2.86336,3492.4,3491.4,3.0]
[1721308678028,2.85336,3492.4,3491.5,0.55]
[1721308678746,2.86324,3492.6,3491.5,0.55]
[1721308678950,2.86305,3492.8,3491.5,3.41408]
[1721308679149,2.86305,3492.8,3491.7,2.86388]
[1721308679352,3.0034307,3493.2,3491.8,0.60726776]
[1721308679521,2.86295,3492.9,3491.9,2.8637]
[1721308679733,2.86295,3492.9,3492.0,3.55]
[1721308680642,0.1407207,3493.2,3492.0,3.0]
[1721308680643,2.86324,3492.6,3492.0,3.0]
[1721308680873,2.86303,3492.8,3491.5,2.86404]
[1721308681074,2.86312,3492.7,3491.6,6.41401]
[1721308681280,3.0034707,3493.2,3491.6,0.55]
[1721308681445,2.8632,3492.6,3491.5,3.41408]
[1721308681780,2.86309,3492.8,3491.6,5.86401]
[1721308682080,2.8629,3493.0,3491.7,0.60726713]